Cogmind - Beta 10.2 @@@ ROGUE MODE // 2022.02.05 @ 14:31:29 Player: Dendrocnid Result: Self-destructed Performance ------------- Evolutions (2) 1000 Regions Visited (5) 1000 Robots Destroyed (17) 85 Value Destroyed (443) 443 Prototype IDs (0) 0 Alien Tech Used (0) 0 Bonus (90) 90 TOTAL SCORE: 2618 Bonus ------- Follower Combat Kills 90 Cogmind --------- Core Integrity 479/550 Matter 300/300 Energy 240/240 System Corruption 0% Temperature Cool (0) Movement Core (1200) Ox23 Location -8/Materials Parts ------- > --- POWER (1) -------- Nuclear Core > --- PROPULSION (4) --- (None) > --- UTILITY (4) ------ High-capacity Storage Unit High-capacity Storage Unit > --- WEAPON (2) ------- (None) > --- INVENTORY (20) --- Ion Engine Light Nuclear Core Aluminum Leg Flight Unit Flight Unit Improved Heat Sink Small Storage Unit Medium Storage Unit Large Storage Unit Weight Redist. System Maneuvering Thrusters Mini Grenade Launcher Hammer Proton Bomb Trap Proton Bomb Trap Peak State ------------ > --- POWER ------------ Nuclear Core > --- PROPULSION ------- Light Treads Light Treads Wheel Compact Wheel > --- UTILITY ---------- High-capacity Storage Unit High-capacity Storage Unit > --- WEAPON ----------- EM Pulse Gun Assault Rifle > --- INVENTORY -------- Ion Engine Aluminum Leg Flight Unit Flight Unit Improved Heat Sink Small Storage Unit Medium Storage Unit Large Storage Unit Weight Redist. System Maneuvering Thrusters Assault Rifle Mini Grenade Launcher Proton Bomb Trap Proton Bomb Trap [Rating: 13] Favorites ----------- Power Light Ion Engine Engine Light Ion Engine Power Core Nuclear Core Propulsion Light Treads Treads Light Treads Wheel Compact Wheel Utility Large Storage Unit Storage Large Storage Unit Weapon Assault Rifle Energy Gun EM Pulse Gun Ballistic Gun Assault Rifle Impact Weapon Hammer Build | -11 -10 -10 -10 -9 -8 ------- Run | Scr Mat Min Exi Min Mat Slots Evolved 4 | . . . . . 4 Power . | . . . . . . Propulsion 2 | . . . . . 2 Utility 2 | . . . . . 2 Weapon . | . . . . . . Parts Attached 18 | 6 3 2 2 . 5 Power 2 | 1 . 1 . . . Engine 1 | 1 . . . . . Core 1 | . . 1 . . . Reactor . | . . . . . . Propulsion 4 | 2 . . . . 2 Treads 2 | 2 . . . . . Leg . | . . . . . . Wheel 2 | . . . . . 2 Hover . | . . . . . . Flight . | . . . . . . Utility 6 | 1 3 . 2 . . Device . | . . . . . . Storage 6 | 1 3 . 2 . . Processor . | . . . . . . Hackware . | . . . . . . Protection . | . . . . . . Artifact . | . . . . . . Weapon 6 | 2 . 1 . . 3 Energy Gun 2 | 1 . 1 . . . Energy Cannon . | . . . . . . Ballistic Gun 3 | 1 . . . . 2 Ballistic Cannon . | . . . . . . Launcher . | . . . . . . Special Weapon . | . . . . . . Impact Weapon 1 | . . . . . 1 Slashing Weapon . | . . . . . . Piercing Weapon . | . . . . . . Special Melee Weapon . | . . . . . . Unidentified Prototypes . | . . . . . . Parts Lost 8 | . . 1 . . 7 Power . | . . . . . . Propulsion 4 | . . . . . 4 Utility . | . . . . . . Weapon 4 | . . 1 . . 3 Highest Loss Streak 7 | . . 1 . . 7 Average Slot Usage (%) 96 | . 95 100 100 100 75 Engine 7 | . 14 3 . . . Core 6 | . . 10 14 14 9 Treads 27 | . 28 28 28 28 15 Wheel 1 | . . . . . 16 Storage 25 | . 23 28 28 28 18 Energy Gun 13 | . 14 14 14 14 6 Ballistic Gun 13 | . 14 14 14 14 8 Naked Turns . | . . . . . . Heaviest Build 75 | 11 39 43 75 75 75 Greatest Support 40 | 40 40 40 40 40 26 Greatest Overweight (x) 4 | 1 . 1 1 1 4 Average Overweight (x) . | . . . 1 1 2 Largest Inventory Capacity 20 | 6 16 16 20 20 20 Average Capacity 14 | 5 12 16 16 20 20 Most Carried 16 | 6 10 12 14 16 16 Average Carried 10 | 3 8 10 12 13 15 Final Capacity 20 | 6 16 16 20 20 20 Final Carried 16 | 6 10 12 13 16 15 Class Distribution -------------------- 86% | Mutant 13% | Hauler-Mutant Dominant Class ---------------- Mutant | -10/Materials Mutant | -10/Mines Mutant | -10/Exiles Hauler-Mutant | -9/Mines Hauler-Mutant | -8/Materials Resources | -11 -10 -10 -10 -9 -8 ----------- Run | Scr Mat Min Exi Min Mat Matter Collected 515 | 131 213 38 . 33 100 Remotely . | . . . . . . Salvage Created 593 | . 297 32 . . 264 Parts 33 | . 14 2 . . 17 Haulers Intercepted 2 | . 2 . . . . Recyclers Shooed 1 | . 1 . . . . Parts Field Recycled . | . . . . . . Retrieved Matter . | . . . . . . Parts Self-Destructed . | . . . . . . Prevented . | . . . . . . Kills | -11 -10 -10 -10 -9 -8 ------- Run | Scr Mat Min Exi Min Mat Combat Hostiles Destroyed 13 | . 4 3 . . 6 Guns 11 | . 3 2 . . 6 AOE 2 | . 1 1 . . . Classes Destroyed 5 | . 3 1 . . 1 Hauler 2 | . 2 . . . . Operator 1 | . . . . . 1 Watcher 1 | . 1 . . . . Swarmer 5 | . . 3 . . 2 Grunt 8 | . 4 . . . 4 Best Kill Streak 3 | . 2 3 . . 3 Combat Bots Only 3 | . 2 3 . . 3 Max Kills in Single Turn 2 | . 1 2 . . 2 Gunslinging 1 | . . . . . 1 Exploded 1 | . 1 1 . . . Melee . | . . . . . . Uniques/NPCs Destroyed . | . . . . . . Combat | -11 -10 -10 -10 -9 -8 -------- Run | Scr Mat Min Exi Min Mat Damage Taken 873 | . 182 125 . 16 550 Core 90 | . 13 6 . . 71 Absorbed by Shields . | . . . . . . Core Remaining (%) 96 | 100 . . . 92 . Volleys Fired 52 | . 27 3 . 1 21 Largest 2 | . 2 2 . 2 2 Hottest 60 | . 60 60 . 60 60 Shots Fired 92 | . 54 6 . 2 30 Gun 92 | . 54 6 . 2 30 Cannon . | . . . . . . Launcher . | . . . . . . Special . | . . . . . . Kinetic 54 | . 27 3 . 1 23 Thermal . | . . . . . . Explosive . | . . . . . . Electromagnetic 38 | . 27 3 . 1 7 Robot Hit Streak 13 | . 5 2 . 1 13 Robot Miss Streak 4 | . 4 2 . 1 2 Penetration Max . | . . . . . . Secondary Targets 4 | . . 2 . . 2 Max Gunslinging Chain 1 | . . 1 . . 1 Shots Hit Robots 56 | . 28 3 . 1 24 Core Hits 26 | . 12 3 . . 11 Critical Hits 1 | . . . . . 1 Critical Kills 1 | . . . . . 1 Critical Parts Destroyed . | . . . . . . Melee Attacks 1 | . . . . . 1 Impact 1 | . . . . . 1 Slashing . | . . . . . . Piercing . | . . . . . . Sneak Attacks . | . . . . . . Combat Hostiles . | . . . . . . Follow-up Attacks . | . . . . . . Damage Inflicted 909 | . 421 142 . . 346 Guns 738 | . 369 46 . . 323 Cannons . | . . . . . . Explosions 167 | . 48 96 . . 23 Melee . | . . . . . . Ramming 4 | . 4 . . . . Kinetic 443 | . 180 25 . . 238 Thermal 167 | . 48 96 . . 23 Explosive . | . . . . . . Electromagnetic 295 | . 189 21 . . 85 Impact . | . . . . . . Slashing . | . . . . . . Piercing . | . . . . . . Highest Corruption . | . . . . . . Average Corruption . | . . . . . . Corruption Purged . | . . . . . . Overload Shots . | . . . . . . Overflow Damage . | . . . . . . Projectiles . | . . . . . . Explosions . | . . . . . . Melee . | . . . . . . Knockbacks . | . . . . . . Impact . | . . . . . . Kinetic . | . . . . . . Secondary . | . . . . . . Self-Inflicted Damage 68 | . 37 31 . . . Shots 3 | . 1 2 . . . Rammed 1 | . 1 . . . . Targets Rammed 1 | . 1 . . . . Kicked . | . . . . . . Crushed . | . . . . . . Highest Temperature 40 | . 36 24 . 6 40 Average Temperature 15 | . 18 19 . 4 14 Received Heat Transfer 321 | . 60 . . . 261 Siege Activations . | . . . . . . Robots Corrupted . | . . . . . . Combat Hostiles . | . . . . . . Parts Fried 2 | . 2 . . . . Impact Corruptions . | . . . . . . Robots Melted . | . . . . . . Combat Hostiles . | . . . . . . Parts Melted . | . . . . . . Heat Transferred 150 | . 50 100 . . . Parts Sabotaged . | . . . . . . Parts Stolen . | . . . . . . Parts Stripped . | . . . . . . Power Chain Reactions 3 | . 1 1 . . 1 Missiles Intercepted . | . . . . . . Alert | -11 -10 -10 -10 -9 -8 ------- Run | Scr Mat Min Exi Min Mat Peak Influence 194 | . 117 95 . 81 194 Initial 31 | . . 5 . . 31 Average 51 | . 33 74 . 27 135 Maximum Alert Level . | . . . . . . Low Security (%) 100 | 100 100 100 . 100 100 Level 1 . | . . . . . . Level 2 . | . . . . . . Level 3 . | . . . . . . Level 4 . | . . . . . . Level 5 . | . . . . . . High Security . | . . . . . . Max Security . | . . . . . . Squads Dispatched 3 | . . . . . 3 Investigation 1 | . . . . . 1 Extermination . | . . . . . . Reinforcement 2 | . . . . . 2 Assault . | . . . . . . Garrison . | . . . . . . Intercept . | . . . . . . Construction Impeded . | . . . . . . Haulers Reinforced . | . . . . . . Stealth | -11 -10 -10 -10 -9 -8 --------- Run | Scr Mat Min Exi Min Mat Distress Signals 1 | . 1 . . . . Communications Jammed . | . . . . . . Distress Signals . | . . . . . . Times Spotted 33 | . 15 3 . 3 12 Peak Tracking Total 4 | . 3 3 . 3 4 Tactical Retreats 1 | . 1 . . . . Traps | -11 -10 -10 -10 -9 -8 ------- Run | Scr Mat Min Exi Min Mat Traps Triggered 2 | . 1 1 . . . Indirectly . | . . . . . . Trap Hack Attempts . | . . . . . . Triggered . | . . . . . . Disarmed . | . . . . . . Reprogrammed . | . . . . . . Reused . | . . . . . . Traps Extracted . | . . . . . . Installed . | . . . . . . Triggered . | . . . . . . Machines | -11 -10 -10 -10 -9 -8 ---------- Run | Scr Mat Min Exi Min Mat Machines Disabled 2 | . . 1 . . 1 Max in Single Turn 1 | . . 1 . . 1 Machines Sabotaged . | . . . . . . Garrisons Compromised . | . . . . . . Overloaded Fab Kills . | . . . . . . Fab Network Shutdowns . | . . . . . . Hacking | -11 -10 -10 -10 -9 -8 --------- Run | Scr Mat Min Exi Min Mat Machines Accessed 6 | . 4 1 . . 1 Terminals 5 | . 4 . . . 1 Fabricators . | . . . . . . Repair Stations . | . . . . . . Recycling Units . | . . . . . . Scanalyzers . | . . . . . . Garrison Access . | . . . . . . Total Hacks 16 | . 11 1 . . 4 Successful 7 | . 4 1 . . 2 Failed 9 | . 7 . . . 2 Catastrophic 3 | . 1 . . . 2 Database Lockouts . | . . . . . . Manual 10 | . 6 . 1 . 3 Terminals 15 | . 11 . . . 4 Fabricators . | . . . . . . Repair Stations . | . . . . . . Recycling Units . | . . . . . . Scanalyzers . | . . . . . . Garrison Access . | . . . . . . Terminal Hacks 4 | . 2 1 . . 1 Open Door 1 | . . 1 . . . Alert Level 1 | . . . . . 1 Zone Layout 2 | . 2 . . . . Fabricator Hacks . | . . . . . . Repair Station Hacks . | . . . . . . Recycling Unit Hacks . | . . . . . . Scanalyzer . | . . . . . . Garrison Access Hacks . | . . . . . . Unauthorized Hacks 3 | . 2 . . . 1 Terminals 3 | . 2 . . . 1 Botnet 3 | . 2 . . . 1 Fabricators . | . . . . . . Repair Stations . | . . . . . . Recycling Units . | . . . . . . Scanalyzers . | . . . . . . Garrison Access . | . . . . . . Data Cores Recovered . | . . . . . . Used . | . . . . . . Hacking Detections 5 | . 4 . . . 1 Full Trace Events 1 | . . . . . 1 Feedback Events . | . . . . . . Feedback Blocked . | . . . . . . Robot Schematics Acquired . | . . . . . . Robots Built . | . . . . . . Matter . | . . . . . . Time . | . . . . . . Total Robot Build Rating . | . . . . . . Part Schematics Acquired . | . . . . . . Parts Built . | . . . . . . Matter . | . . . . . . Time . | . . . . . . Total Part Build Rating . | . . . . . . Parts Repaired . | . . . . . . Time . | . . . . . . Parts Recycled . | . . . . . . Recycled Matter . | . . . . . . Retrieved Matter . | . . . . . . Retrieved Components . | . . . . . . Parts Scanalyzed . | . . . . . . Part Schematics Acquired . | . . . . . . Parts Damaged . | . . . . . . Bothacking | -11 -10 -10 -10 -9 -8 ------------ Run | Scr Mat Min Exi Min Mat Used RIF Installer . | . . . . . . Robots Hacked . | . . . . . . Non-combat . | . . . . . . Combat . | . . . . . . Robot Hacks Applied . | . . . . . . Relay Couplers Released . | . . . . . . Robots Rewired . | . . . . . . Allies Hacked . | . . . . . . Hacks Repelled . | . . . . . . Allies | -11 -10 -10 -10 -9 -8 -------- Run | Scr Mat Min Exi Min Mat Total Allies 3 | . . 3 . . . Largest Group 3 | . . 3 3 3 3 Highest-Rated Group 40 | . . 40 40 40 40 Highest-Rated Ally 16 | . . 16 16 16 16 Total Orders . | . . . . . . Ally Attacks 33 | . . . . 7 26 Total Damage 343 | . . . . 65 278 Kills 6 | . . . . 3 3 Allies Corrupted . | . . . . . . Allies Melted . | . . . . . . Intel | -11 -10 -10 -10 -9 -8 ------- Run | Scr Mat Min Exi Min Mat Robot Analysis Total . | . . . . . . Derelict Logs Recovered . | . . . . . . Drone Launches . | . . . . . . Drone Recoveries . | . . . . . . Exploration | -11 -10 -10 -10 -9 -8 ------------- Run | Scr Mat Min Exi Min Mat Turns Passed 2340 | 80 1071 501 427 95 166 Spaces Moved 1256 | 47 586 273 236 42 72 Core 9 | 9 . . . . . Treads 1175 | 38 586 273 236 42 . Legs . | . . . . . . Wheels 72 | . . . . . 72 Hover . | . . . . . . Flight . | . . . . . . Fastest Speed 50 | 50 160 160 180 180 110 Average Speed 164 | 140 160 175 180 180 110 Slowest Speed 180 | 160 160 180 180 180 140 Overloaded Moves . | . . . . . . Propulsion Burnouts . | . . . . . . Robots Hopped . | . . . . . . Cave-ins Triggered . | . . . . . . Exploration Rate (%) 40 | 4 88 65 62 10 11 Regions Visited 5 Branch Regions 3 Pre-discovered Areas . | . . . . . . Known Exits Taken . | . . . . . . Unknown Exits Taken 5 | 1 1 1 1 1 . Scrap Searched 1 | . . 1 . . . Spaces Dug . | . . . . . . Terrain Destroyed 19 | . 2 14 . . 3 Melee . | . . . . . . Projectile . | . . . . . . AOE 19 | . 2 14 . . 3 Terrain Rammed . | . . . . . . Walls Destroyed . | . . . . . . Machines Disabled . | . . . . . . Actions | -11 -10 -10 -10 -9 -8 --------- Run | Scr Mat Min Exi Min Mat Total 1437 | 58 664 291 238 60 126 Wait 89 | . 42 9 . 15 23 Move 1251 | 46 585 272 235 41 72 Hop . | . . . . . . Pick Up 20 | 6 4 4 . 3 3 Fast Attach 7 | 6 1 . . . . Attach 4 | . . 1 . . 3 Detach . | . . . . . . Swap 7 | . 2 1 2 . 2 Drop 5 | . 2 1 1 . 1 Fire 52 | . 27 3 . 1 21 Melee 1 | . . . . . 1 Ram . | . . . . . . Kick . | . . . . . . Crush 1 | . 1 . . . . Escape Stasis . | . . . . . . Rewire . | . . . . . . Trap . | . . . . . . Miscellaneous . | . . . . . . Route ------- -11/Scrapyard -10/Materials (discovered 4 exits: [*Mat x3] / *Min) -10/Mines -10/Exiles -9/Mines -8/Materials History --------- Turn | Location | Event 11 | -11/Scrapyard | Discovered new exit (range 13) 81 | -11/Scrapyard | Entered Materials 228 | -10/Materials | Discovered new exit (range 6) 304 | -10/Materials | Build established: Mutant 407 | -10/Materials | Discovered new exit (range 5) 541 | -10/Materials | Discovered new exit (range 15) 710 | -10/Materials | Discovered new exit (range 4) 1152 | -10/Materials | Entered Mines 1264 | -10/Mines | Met a Derelict who couldn't figure out how to use a Trap Extractor 1437 | -10/Mines | Found a hidden stash of uninstalled traps 1466 | -10/Mines | Assisted by bots powering up and referring to "LRC-V3" 1635 | -10/Mines | Deemed a non-threat by the Exiles lab entrance 1635 | -10/Mines | Discovered new exit (range 5) 1653 | -10/Mines | Entered Exiles 1653 | -10/Exiles | Found Exiles lab destroyed 1653 | -10/Exiles | Accompanied by 3 allies 2060 | -10/Exiles | Discovered new exit (range 10) 2080 | -10/Exiles | Entered Mines 2080 | -9/Mines | Accompanied by 3 allies 2128 | -9/Mines | Discovered new exit (range 9) 2175 | -9/Mines | Entered Materials 2175 | -8/Materials | Accompanied by 3 allies 2175 | -8/Materials | Evolved 4 slots: Propulsion x2, Utility x2 2328 | -8/Materials | Build established: Hauler-Mutant 2341 | -8/Materials | Self-destructed Last Messages --------------- 02302_ Lgt. Treads destroyed. 02304_ G-47 Trooper destroyed. 02304_ Switching to secondary target: G-47 Trooper. 02306_ EM Pulse Gun destroyed. 02312_ Assault Rifle destroyed. 02320_ G-47 Trooper suffers critical hit. 02320_ G-47 Trooper destroyed. 02325_ Wheel destroyed. 02330_ G-47 Trooper destroyed. 02331_ Slug penetrates Wall. 02334_ Terminal disabled. 02334_ Acquired 39 matter. 02336_ Acquired 3 matter. 02337_ Penetrated by Slug. 02337_ Lgt. Treads destroyed. 02338_ Acquired 3 matter. 02338_ Atomic Centrifuge disabled. 02338_ Com. Wheel destroyed. 02340_ Acquired 3 matter. 02340_ Assault Rifle destroyed. Map ----- +----------------------------------------------------+ | ??????????????????????????????????????????????? | | ??????????????????????????????????????????????? | | ??????????????????????????????????????????????? | | ??????????????????????????????????????????????? | | ??????????????????????????????????????????????? | | ??????????????????????????????????????????????? | | ??????????????????????????????????????????????? | | ??????????????????????????????????????????????? | | ??????????????????????????????????????????????? | | ??????????????????????????????????????????????? | | ??????????????????????????????????????????????? | | ??????????????????????????????????????????????? | | ??????????????????? ????????????????????????? | | ??????????????????# #???????????????????????? | | ??????????????????# #???????????????????????? | | ??????????????????# #???????????????????????? | | ??????############# #???????????????????????? | | ??????# ! # #???????????????????????? | | ??????# """ # #???????????????????????? | | ??????# """"" # #???????????????????????? | | ??????# [ """""*# #???????????????????????? | | ??????# """""=# +???????????????????????? | | ??????#! """%=# #???????????????????????? | | ??????# *%=[# #???????????????????????? | | #########+#####+###ggh######??????????????????? | | # ! # #??#[!T ![!@ #??????????????????? | | # # #??#%!%* *%%!/ #??????????????????? | | # # #??#!=[=! =[* #??????????????????? | | #!! # #??#=%""" "" #?????????????????? | | #!! # ####%%""" o""" T#?????????????????? | | #! # [=%""" """ #?????????????????? | | # + == ##?????????????????? | | # # #??????????????????? | | # ! ! ### #######+###??????????????????? | | # #?# #????????????????????????????? | | # ### #????????????????????????????? | | #########""""# #????????????????????????????? | | ???# [ = + #????????????????????????????? | | ???# # #????????????????????????????? | | ???# # #????????????????????????????? | | ???# """ ""#####????????????????????????????? | | ???# """"" #????????????????????????????????? | | ???# """"" !#????????????????????????????????? | | ???# """"" #????????????????????????????????? | | ???# """ #????????????????????????????????? | | ???##???######????????????????????????????????? | | ??????????????????????????????????????????????? | | | | | | | +----------------------------------------------------+ Best States ------------- Heat Dissipation 31 Energy Generation 14 Energy Capacity 240 Matter Stores 300 Matter Capacity 300 Sight Range 16 Terrain Scan Density 10 Evasion (%) 40 Recoil Reduction 2 Item Schematics ----------------- None Robot Schematics ------------------ None Fabricated ------------ Nothing Alien Tech Used ----------------- None Achievements -------------- None Challenges ------------ None Game ------ Seed RagnarokCryofiberReactor Manual? 0 Play Time 00:18:42 Cumulative 106.3 hours Start 2022.02.05 @ 14:14:55 End 2022.02.05 @ 14:31:29 Sessions 1 Manual Loads 0 Difficulty Rogue Special Mode None Game No. 179 Rogue 179 Adventurer 0 Explorer 0 Win Type - Total 0 Types 0/0/0/0/0/0/0/0/0 Lore% 29 Gallery% 49 Achievement% 40 Wizard Run 0 Options --------- ASCII 0 Keyboard 0 Movement Mouse Keybinds 0 Fullscreen 1 Font 18/SmallcapsGlow Map View 76x50 Tactical HUD 1 Map Filters NONE Filters NONE Steam 1 RUN: 1c7f3fd1-b34d-4cf1-9d4b-40de0f410504